[Event "4th Memorial Warakomska-B 2020"]
[Site "Suwalki"]
[Date "2020.08.09"]
[Round "5.6"]
[White "Zalega, Maciej"]
[Black "Rak, Tomasz"]
[Result "0-1"]
[ECO "B16"]
[WhiteElo "1743"]
[BlackElo "1879"]
[Annotator "NA"]
[PlyCount "120"]
[EventDate "2020.08.06"]
[EventType "swiss"]
[EventCountry "POL"]
[SourceTitle "playchess.com"]
[Source "ChessBase"]
[SourceQuality "1"]
[TimeControl "40/5400+30:1800+30"]

1. e4 {[%emt 0:00:00]} c6 {[%emt 0:00:00]} 2. d4 {[%emt 0:00:00]} d5 {[%emt 0:00:00]} 3. Nc3 {[%emt 0:00:00]} dxe4 {[%emt 0:00:00]} 4. Nxe4 {[%emt 0:00:00]} Nf6 {[%emt 0:00:00]} 5. Nxf6+ {[%emt 0:00:01]} gxf6 {[%emt 0:00:00]} 6. Bf4 {[%emt 0:01:29] B16: Caro-Kann: Bronstein-Larsen Variation.} h5 {[%emt 0:02:46]} 7. Nf3 {[%emt 0:01:57]} h4 {[%emt 0:01:11]} 8. h3 {[%emt 0:02:04]} Bf5 {[%emt 0:04:44]} 9. Bd3 {[%emt 0:01:38]} Nd7 {[%emt 0:00:10]} ({Black should try} 9... Qc8 $14) 10. Bxf5 {[%emt 0:01:02]} Qa5+ {[%emt 0:00:07]} 11. Qd2 {[%emt 0:00:13]} Qxf5 {[%emt 0:00:06]} 12. O-O-O {[%emt 0:03:12]} Nb6 {[%emt 0:01:08]} 13. Kb1 {[%emt 0:05:24]} e6 {[%emt 0:06:37]} 14. Bh2 {[%emt 0:05:50] [#]} a5 $146 {[%emt 0:02:35]} ({Predecessor:} 14... O-O-O 15. Qc3 Be7 16. Qb3 Qd5 17. c4 Qxc4 18. Qxc4 Nxc4 19. Rhe1 Rdg8 20. Rg1 Bd6 {0-1 (63) Arutyunova,D (2338)-Berdichevski,I (2555) Internet 2006}) 15. Qd3 {[%emt 0:05:22]} Qd5 {[%emt 0:04:58]} 16. Qb3 {[%emt 0:17:24]} Ra6 {[%emt 0:09:58]} 17. Rhe1 {[%emt 0:06:23]} a4 {[%emt 0:01:55]} 18. Qxd5 {[%emt 0:00:33]} cxd5 {[%emt 0:00:11]} 19. Bc7 {[%emt 0:14:48]} Na8 {[%emt 0:04:09]} 20. Bf4 {[%emt 0:00:39]} Kd7 {[%emt 0:01:00]} 21. Re3 {[%emt 0:06:47]} b5 {[%emt 0:02:11]} 22. a3 {[%emt 0:03:26]} b4 {[%emt 0:03:56]} 23. axb4 {[%emt 0:00:21]} Bxb4 {[%emt 0:00:04]} 24. Red3 {[%emt 0:00:48]} Nb6 {[%emt 0:01:47]} 25. Bd2 {[%emt 0:00:53]} Bd6 {[%emt 0:01:31]} 26. Bc1 {[%emt 0:05:13]} Nc4 {[%emt 0:03:51]} 27. Nd2 {[%emt 0:01:14]} Na5 {[%emt 0:00:31]} 28. Nf3 {[%emt 0:05:01]} Rb6 {[%emt 0:01:10]} 29. Ka2 {[%emt 0:05:13]} Rc6 {[%emt 0:03:15]} 30. Bd2 {[%emt 0:01:34]} Nc4 {[%emt 0:01:03]} 31. Bc3 {[%emt 0:01:34]} Rhc8 {[%emt 0:09:46]} 32. Nd2 {[%emt 0:03:43]} Na3 {[%emt 0:04:34]} 33. bxa3 {[%emt 0:00:56]} Rxc3 {[%emt 0:00:02]} 34. Rxc3 {[%emt 0:00:48]} Rxc3 {[%emt 0:00:01]} 35. Kb2 {[%emt 0:00:30]} Rc8 {[%emt 0:00:33]} 36. Nf3 {[%emt 0:00:42]} Rb8+ {[%emt 0:00:53]} 37. Ka2 {[%emt 0:00:08]} Rc8 {[%emt 0:01:20]} 38. Kb2 {[%emt 0:00:04]} Rb8+ {[%emt 0:00:12]} 39. Ka2 {[%emt 0:00:03]} Rh8 {[%emt 0:00:11]} 40. Rb1 {[%emt 0:00:00]} Kc6 {[%emt 0:00:00]} 41. Rc1 {[%emt 0:08:00]} e5 {[%emt 0:05:38]} 42. dxe5 {[%emt 0:08:12]} fxe5 {[%emt 0:00:33]} 43. c4 {[%emt 0:01:36]} d4 {[%emt 0:01:07]} 44. c5 {[%emt 0:02:15]} Bc7 {[%emt 0:00:36]} 45. Rc4 {[%emt 0:01:30]} Kb5 {[%emt 0:05:55]} 46. Rb4+ {[%emt 0:01:22]} Kxc5 {[%emt 0:00:35]} 47. Rxa4 {[%emt 0:00:32]} f6 {[%emt 0:01:28]} 48. Kb2 {[%emt 0:01:04]} Bd6 {[%emt 0:02:47]} 49. Kc2 {[%emt 0:01:57]} Kb5 50. Ra7 Rc8+ 51. Kd2 Bc5 52. Rf7 e4 53. Ne1 Ra8 54. Rxf6 Rxa3 55. Re6 Bb4+ $19 56. Ke2 d3+ 57. Nxd3 exd3+ 58. Ke3 d2+ 59. Ke2 Ra1 60. Re5+ Kc6 {[%emt 0:12:21]} 0-1

[Event "4th Memorial Warakomska-B 2020"]
[Site "Suwalki"]
[Date "2020.08.09"]
[Round "5.7"]
[White "Kasperczyk, Szymon"]
[Black "Widelski, Kacper"]
[Result "1/2-1/2"]
[ECO "B27"]
[WhiteElo "1711"]
[BlackElo "1879"]
[Annotator "NA"]
[PlyCount "78"]
[EventDate "2020.08.06"]
[EventType "swiss"]
[EventCountry "POL"]
[SourceTitle "playchess.com"]
[Source "ChessBase"]
[SourceQuality "1"]
[TimeControl "40/5400+30:1800+30"]

1. e4 {[%emt 0:04:09]} c5 {[%emt 0:00:00]} 2. Nf3 {[%emt 0:00:28]} g6 {[%emt 0:00:00]} 3. c3 {[%emt 0:00:06]} Bg7 {[%emt 0:00:14]} 4. d4 {[%emt 0:00:06]} cxd4 {[%emt 0:00:05]} 5. cxd4 {[%emt 0:00:11]} d5 {[%emt 0:00:07]} 6. Bb5+ {[%emt 0:00:14]} Bd7 {[%emt 0:03:36] B27: Sicilian: 2 Nf3, unusual Black 2nd moves.} 7. Bxd7+ {[%emt 0:02:13]} Qxd7 {[%emt 0:00:42]} 8. e5 {[%emt 0:00:33]} Nh6 {[%emt 0:01:41]} 9. O-O {[%emt 0:01:31]} Nf5 {[%emt 0:02:03]} 10. Nc3 {[%emt 0:02:37]} Nc6 {[%emt 0:02:37]} 11. Re1 {[%emt 0:07:28]} O-O {[%emt 0:01:08]} 12. Bf4 {[%emt 0:01:54]} e6 {[%emt 0:05:30]} 13. Qd2 {[%emt 0:02:18]} Rac8 {[%emt 0:15:23] [#]} 14. g4 $146 {[%emt 0:05:19]} ({Predecessor:} 14. Rac1 f6 15. exf6 Bxf6 16. Ne5 Nxe5 17. Bxe5 Bxe5 18. Rxe5 Rc4 19. Ne2 Rfc8 20. Rxc4 Rxc4 {½-½ (92) Ramiro Ovejero,J (2316)-Cifuentes Parada,R (2451) Estadilla 2017}) 14... Nfe7 {[%emt 0:02:06]} 15. Bh6 {[%emt 0:00:23]} b5 {[%emt 0:10:37]} 16. Bxg7 {[%emt 0:04:45]} Kxg7 {[%emt 0:01:21]} 17. Qg5 {[%emt 0:00:45]} Ng8 {[%emt 0:06:15]} 18. Nxb5 {[%emt 0:04:07]} h6 {[%emt 0:00:53]} 19. Qe3 {[%emt 0:00:53]} Nb4 {[%emt 0:00:34]} 20. Na3 {[%emt 0:01:07]} Nc2 {[%emt 0:04:10]} 21. Nxc2 {[%emt 0:00:16]} Rxc2 {[%emt 0:00:02]} 22. Re2 {[%emt 0:01:15]} Rfc8 {[%emt 0:01:42]} 23. Ne1 {[%emt 0:01:50]} R2c4 {[%emt 0:00:32]} 24. Nd3 {[%emt 0:02:57]} Qb5 {[%emt 0:01:11]} 25. Rae1 {[%emt 0:11:40]} Ne7 {[%emt 0:04:13]} 26. Rd2 {[%emt 0:06:09]} Nc6 {[%emt 0:01:08]} 27. Nf4 {[%emt 0:02:05]} Nb4 {[%emt 0:04:57]} 28. Qf3 {[%emt 0:06:36]} Qb7 {[%emt 0:02:34]} 29. b3 {[%emt 0:04:31]} Rc2 {[%emt 0:05:03]} 30. Ree2 {[%emt 0:01:35]} R8c3 {[%emt 0:00:54]} 31. Nd3 {[%emt 0:05:52]} Rxd2 {[%emt 0:10:34]} 32. Rxd2 {[%emt 0:00:33]} Qb5 {[%emt 0:00:27]} 33. Qf6+ {[%emt 0:00:39]} Kg8 {[%emt 0:00:19]} 34. Nxb4 {[%emt 0:12:32]} Rc1+ {[%emt 0:07:17]} 35. Kg2 {[%emt 0:00:03]} Qf1+ $11 {[%emt 0:01:57]} 36. Kg3 {[%emt 0:00:42]} Qg1+ {[%emt 0:00:29]} 37. Kh3 {[%emt 0:01:01]} Qf1+ {[%emt 0:04:28]} 38. Kg3 {[%emt 0:00:06]} Qg1+ {[%emt 0:00:05]} 39. Kh3 {[%emt 0:00:27]} Qf1+ {[%emt 0:01:39]} 1/2-1/2

[Event "4th Memorial Warakomska-B 2020"]
[Site "Suwalki"]
[Date "2020.08.09"]
[Round "5.8"]
[White "Cwiek, Ryszard"]
[Black "Kotarski, Bartosz"]
[Result "1-0"]
[ECO "B20"]
[WhiteElo "1867"]
[BlackElo "1742"]
[Annotator "NA"]
[PlyCount "51"]
[EventDate "2020.08.06"]
[EventType "swiss"]
[EventCountry "POL"]
[SourceTitle "playchess.com"]
[Source "ChessBase"]
[SourceQuality "1"]
[TimeControl "40/5400+30:1800+30"]

1. e4 {[%emt 0:00:00]} c5 {[%emt 0:00:00]} 2. b3 {[%emt 0:00:22]} Nc6 {[%emt 0:01:28]} 3. Bb2 {[%emt 0:00:23]} e5 {[%emt 0:01:07]} 4. Bb5 {[%emt 0:03:41]} Nd4 {[%emt 0:14:49]} 5. Be2 {[%emt 0:09:30]} Qg5 {[%emt 0:11:01]} 6. Bf3 {[%emt 0:01:27]} d6 {[%emt 0:00:28]} 7. c3 {[%emt 0:04:51]} Ne6 {[%emt 0:03:57]} 8. Ne2 {[%emt 0:02:39]} g6 {[%emt 0:08:01]} 9. d4 {[%emt 0:14:30]} exd4 {[%emt 0:04:03]} 10. cxd4 {[%emt 0:00:01]} Bg7 $14 {[%emt 0:00:12]} 11. Bc3 {[%emt 0:08:19]} cxd4 {[%emt 0:10:30]} 12. Nxd4 {[%emt 0:00:57]} Qc5 {[%emt 0:00:15]} 13. Ne2 {[%emt 0:00:46]} Be5 {[%emt 0:00:20]} 14. Bxe5 {[%emt 0:12:47]} dxe5 {[%emt 0:00:02]} 15. Nd2 {[%emt 0:03:33]} Nf6 {[%emt 0:01:34]} 16. Rc1 {[%emt 0:03:15]} Qb4 {[%emt 0:03:15]} 17. O-O {[%emt 0:00:49]} O-O {[%emt 0:00:22]} 18. Nc4 {[%emt 0:02:01]} Re8 {[%emt 0:12:31]} 19. Qd6 {[%emt 0:11:11]} Qxd6 {[%emt 0:00:06]} 20. Nxd6 {[%emt 0:00:01]} Rd8 {[%emt 0:00:09]} 21. Nc4 {[%emt 0:00:11]} Ng5 {[%emt 0:04:44]} 22. Nc3 {[%emt 0:03:44]} Nxf3+ {[%emt 0:11:02]} 23. gxf3 {[%emt 0:00:02]} Re8 {[%emt 0:00:01]} 24. Nd6 {[%emt 0:03:31]} Re7 {[%emt 0:01:01]} 25. Nxc8 {[%emt 0:00:10]} Rxc8 {[%emt 0:00:11]} 26. Nd5 {[%emt 0:00:03]} 1-0

[Event "4th Memorial Warakomska-B 2020"]
[Site "Suwalki"]
[Date "2020.08.09"]
[Round "5.9"]
[White "Lukasik, Zuzanna"]
[Black "Wierzbicki, Michal"]
[Result "0-1"]
[ECO "C05"]
[WhiteElo "1553"]
[BlackElo "1849"]
[Annotator "NA"]
[PlyCount "100"]
[EventDate "2020.08.06"]
[EventType "swiss"]
[EventCountry "POL"]
[SourceTitle "playchess.com"]
[Source "ChessBase"]
[SourceQuality "1"]
[TimeControl "40/5400+30:1800+30"]

1. e4 {[%emt 0:00:00]} e6 {[%emt 0:00:01]} 2. d4 {[%emt 0:00:00]} d5 {[%emt 0:00:11]} 3. Nd2 {[%emt 0:00:00]} Nf6 {[%emt 0:04:45]} 4. e5 {[%emt 0:00:02]} Nfd7 {[%emt 0:00:07]} 5. Bd3 {[%emt 0:00:55]} c5 {[%emt 0:00:24]} 6. c3 {[%emt 0:00:06]} b6 {[%emt 0:02:58]} 7. Ne2 {[%emt 0:00:57]} Ba6 {[%emt 0:00:09]} 8. Bxa6 {[%emt 0:01:04]} Nxa6 {[%emt 0:00:03]} 9. O-O {[%emt 0:01:21]} Nc7 {[%emt 0:01:51]} 10. f4 {[%emt 0:01:04]} f5 {[%emt 0:01:54]} 11. Nf3 {[%emt 0:01:46]} Be7 {[%emt 0:01:09]} 12. Be3 {[%emt 0:05:20]} a5 {[%emt 0:04:00]} 13. Qe1 {[%emt 0:03:13]} O-O {[%emt 0:30:22]} 14. Kh1 {[%emt 0:06:23]} Qe8 {[%emt 0:04:44]} 15. Rg1 {[%emt 0:09:50]} Qg6 {[%emt 0:10:40]} 16. Rc1 {[%emt 0:02:36]} c4 {[%emt 0:00:45]} 17. h3 {[%emt 0:03:24]} b5 {[%emt 0:13:06]} 18. Qf2 {[%emt 0:03:59]} b4 {[%emt 0:05:08]} 19. g4 {[%emt 0:02:02]} bxc3 {[%emt 0:01:32]} 20. Nxc3 {[%emt 0:01:19]} a4 {[%emt 0:05:45]} 21. a3 {[%emt 0:01:17]} Rfb8 {[%emt 0:01:26]} 22. Rg2 {[%emt 0:03:43]} Ne8 {[%emt 0:02:21]} 23. Qc2 {[%emt 0:02:43]} fxg4 {[%emt 0:04:03]} 24. Qxg6 {[%emt 0:00:53]} hxg6 {[%emt 0:00:06]} 25. hxg4 {[%emt 0:00:18]} Nc7 {[%emt 0:00:47]} 26. g5 {[%emt 0:02:59]} Kf7 {[%emt 0:00:48]} 27. Kh2 {[%emt 0:01:48]} Nb5 {[%emt 0:00:32]} 28. Ng1 {[%emt 0:02:10]} Nxc3 {[%emt 0:01:46]} 29. Rxc3 {[%emt 0:00:11]} Rb3 {[%emt 0:01:00]} 30. Rgc2 {[%emt 0:01:49]} Rab8 {[%emt 0:00:35]} 31. Bc1 {[%emt 0:00:45]} Bd8 {[%emt 0:01:18]} 32. Rh3 {[%emt 0:02:28]} Ba5 {[%emt 0:00:32]} 33. Ne2 {[%emt 0:01:47]} Nb6 {[%emt 0:01:08]} 34. Nc3 {[%emt 0:03:53]} Bxc3 {[%emt 0:00:23]} 35. Rhxc3 {[%emt 0:00:25]} Nc8 {[%emt 0:00:23]} 36. Rxb3 {[%emt 0:01:20]} axb3 {[%emt 0:00:32]} 37. Rd2 {[%emt 0:05:02]} Nb6 {[%emt 0:00:10]} 38. Re2 {[%emt 0:02:32]} Na4 {[%emt 0:00:29]} 39. Kg2 {[%emt 0:00:29]} Rh8 {[%emt 0:00:58]} 40. Rf2 {[%emt 0:00:00]} Ke7 {[%emt 0:00:00]} 41. Bd2 {[%emt 0:02:54]} Kd7 {[%emt 0:01:35]} 42. Bb4 {[%emt 0:03:33]} Kc6 {[%emt 0:01:00]} 43. Rd2 {[%emt 0:01:39]} Kb5 {[%emt 0:01:08]} 44. Kf3 {[%emt 0:00:30]} Rh1 {[%emt 0:01:14]} 45. Re2 {[%emt 0:03:06]} c3 {[%emt 0:01:05]} 46. Bxc3 {[%emt 0:00:20]} Nxc3 {[%emt 0:00:08]} 47. bxc3 {[%emt 0:00:11]} Kc4 {[%emt 0:00:13]} 48. a4 {[%emt 0:00:30]} Kxc3 {[%emt 0:00:14]} 49. Re3+ {[%emt 0:00:12]} Kb4 {[%emt 0:00:39]} 50. a5 {[%emt 0:00:07]} b2 {[%emt 0:00:19]} 0-1

[Event "4th Memorial Warakomska-B 2020"]
[Site "Suwalki"]
[Date "2020.08.09"]
[Round "5.10"]
[White "Sapeta, Robert"]
[Black "Peksa, Zuzanna"]
[Result "1-0"]
[ECO "D01"]
[WhiteElo "1895"]
[BlackElo "1146"]
[Annotator "NA"]
[PlyCount "74"]
[EventDate "2020.08.06"]
[EventType "swiss"]
[EventCountry "POL"]
[SourceTitle "playchess.com"]
[Source "ChessBase"]
[SourceQuality "1"]
[TimeControl "40/5400+30:1800+30"]

1. d4 {[%emt 0:00:07]} d5 {[%emt 0:00:00]} 2. Nc3 {[%emt 0:00:07]} Nf6 {[%emt 0:01:21]} 3. Bg5 {[%emt 0:00:07]} Bf5 {[%emt 0:03:34]} 4. f3 {[%emt 0:00:27]} e6 {[%emt 0:00:34]} 5. e4 {[%emt 0:00:05]} h6 {[%emt 0:08:36]} 6. Bxf6 {[%emt 0:00:27] D01: Veresov Opening.} Qxf6 {[%emt 0:02:50]} 7. exf5 {[%emt 0:00:12] [#]} Nc6 $146 {[%emt 0:01:03]} ({Predecessor:} 7... Qxf5 8. Bd3 Qg5 9. Qd2 Qf6 10. Nge2 Bb4 11. a3 Ba5 12. Qe3 Nc6 13. Bb5 O-O 14. Bxc6 bxc6 {1-0 (32) Olyschlaeger,R (1753)-Wilhelm,K (1187) Uelzen 2007}) 8. Bb5 {[%emt 0:01:50]} Bd6 {[%emt 0:02:07]} 9. Nge2 {[%emt 0:05:06]} O-O {[%emt 0:00:42]} 10. Qd2 {[%emt 0:04:21]} a6 {[%emt 0:14:52]} 11. Bxc6 {[%emt 0:02:05]} bxc6 {[%emt 0:00:11]} 12. fxe6 {[%emt 0:06:22]} fxe6 {[%emt 0:00:25]} 13. O-O {[%emt 0:02:10]} c5 {[%emt 0:02:54]} 14. dxc5 {[%emt 0:05:34]} Bxc5+ {[%emt 0:02:15]} 15. Kh1 {[%emt 0:00:06]} Rab8 {[%emt 0:05:47]} 16. Rab1 {[%emt 0:03:16]} Qg6 {[%emt 0:02:45]} 17. Qd3 {[%emt 0:03:21]} Qh5 {[%emt 0:01:38]} 18. f4 {[%emt 0:02:34]} Rf6 {[%emt 0:06:10]} 19. Rf3 {[%emt 0:14:21]} Rbf8 {[%emt 0:01:28]} 20. Rbf1 {[%emt 0:00:46]} a5 {[%emt 0:07:30]} 21. Nb5 {[%emt 0:08:40]} Bb6 {[%emt 0:03:04]} 22. c4 {[%emt 0:08:15]} c6 {[%emt 0:03:54]} 23. Nbc3 {[%emt 0:03:29]} Qh4 {[%emt 0:05:39]} 24. Na4 {[%emt 0:06:58]} Bc7 {[%emt 0:01:12]} 25. g3 {[%emt 0:01:53]} Qg4 {[%emt 0:01:46]} 26. Kg2 $18 {[%emt 0:00:55]} Kh8 {[%emt 0:01:18]} 27. Nc5 {[%emt 0:02:34]} e5 {[%emt 0:02:36]} 28. h3 {[%emt 0:07:49]} Qh5 {[%emt 0:03:21]} 29. fxe5 {[%emt 0:00:59]} dxc4 {[%emt 0:01:50]} 30. exf6 {[%emt 0:01:37]} cxd3 {[%emt 0:00:52]} 31. fxg7+ {[%emt 0:00:07]} Kxg7 {[%emt 0:00:12]} 32. Ne6+ {[%emt 0:00:06]} Kg6 {[%emt 0:00:39]} 33. Nxf8+ {[%emt 0:00:15]} Kg7 {[%emt 0:00:33]} 34. Ne6+ {[%emt 0:00:11]} Kg6 {[%emt 0:00:35]} 35. N6f4+ {[%emt 0:02:47]} Bxf4 {[%emt 0:00:10]} 36. Nxf4+ Kg7 37. Ne6+ Kh7 1-0

[Event "4th Memorial Warakomska-B 2020"]
[Site "Suwalki"]
[Date "2020.08.09"]
[Round "5.11"]
[White "Siekanska, Zuzanna"]
[Black "Czech, Mieczyslaw"]
[Result "1/2-1/2"]
[ECO "D35"]
[WhiteElo "1680"]
[BlackElo "1863"]
[Annotator "NA"]
[PlyCount "102"]
[EventDate "2020.08.06"]
[EventType "swiss"]
[EventCountry "POL"]
[SourceTitle "playchess.com"]
[Source "ChessBase"]
[SourceQuality "1"]
[TimeControl "40/5400+30:1800+30"]

1. d4 {[%emt 0:00:00]} d5 {[%emt 0:00:00]} 2. c4 {[%emt 0:00:00]} e6 {[%emt 0:01:07]} 3. Nc3 {[%emt 0:00:00]} Nf6 {[%emt 0:01:09]} 4. cxd5 {[%emt 0:00:00]} exd5 {[%emt 0:00:04]} 5. Bg5 {[%emt 0:00:05]} Be7 {[%emt 0:01:59]} 6. e3 {[%emt 0:00:28]} c6 {[%emt 0:00:08]} 7. Bd3 {[%emt 0:00:21]} O-O {[%emt 0:02:28]} 8. Qc2 {[%emt 0:00:19]} Nbd7 {[%emt 0:00:24]} 9. Nf3 {[%emt 0:00:15]} Re8 {[%emt 0:01:07]} 10. O-O {[%emt 0:00:11]} Nf8 {[%emt 0:02:34]} 11. h3 {[%emt 0:00:19]} Be6 {[%emt 0:01:11]} 12. Rab1 {[%emt 0:01:00]} a5 {[%emt 0:01:34]} 13. a3 {[%emt 0:02:14] D36: Queen's Gambit Declined: Exchange Variation: Main line (5 Bg5 c6 6 Qc2).} N6d7 {[%emt 0:01:02]} 14. Bf4 {[%emt 0:00:35]} Rc8 {[%emt 0:01:54]} 15. b4 {[%emt 0:04:28]} axb4 {[%emt 0:04:50]} 16. axb4 {[%emt 0:00:08] [#]} Ng6 $146 {[%emt 0:01:27]} ({Black should play Predecessor:} 16... b5 $11 17. e4 dxe4 18. Nxe4 Nb6 19. Nc5 Bc4 20. Bxc4 Nxc4 21. Rbd1 Ng6 22. Bg3 Qd5 {1-0 (45) Balashov,Y (2434)-Gunchenko,V (2338) Taganrog 2018}) 17. Bh2 {[%emt 0:00:24]} b5 {[%emt 0:08:52]} 18. Ne5 {[%emt 0:13:37]} Ndxe5 {[%emt 0:03:15]} 19. dxe5 {[%emt 0:00:11]} Qb6 {[%emt 0:07:07]} 20. Kh1 {[%emt 0:05:43]} Nf8 {[%emt 0:02:25]} (20... c5 $11 21. bxc5 (21. Bxb5 Red8 $11) 21... Qxc5 22. Bxb5 Red8) 21. Qe2 {[%emt 0:12:35]} f5 {[%emt 0:11:09]} 22. exf6 {[%emt 0:04:31]} Bxf6 {[%emt 0:00:16]} 23. Qd2 {[%emt 0:01:41]} Qd8 {[%emt 0:04:02]} 24. Ne2 {[%emt 0:01:46]} Qe7 {[%emt 0:01:43]} 25. Nd4 {[%emt 0:03:39]} Bd7 {[%emt 0:01:06]} 26. Nf5 {[%emt 0:04:08]} Bxf5 $11 {[%emt 0:01:11]} 27. Bxf5 {[%emt 0:00:04]} Ra8 {[%emt 0:00:44]} 28. Rfc1 {[%emt 0:03:29]} Qb7 {[%emt 0:04:09]} 29. Qc2 {[%emt 0:02:21]} Ra6 {[%emt 0:00:45]} 30. Bd6 {[%emt 0:00:47]} g6 {[%emt 0:03:35]} 31. Bg4 {[%emt 0:00:33]} Nd7 {[%emt 0:03:36]} 32. Bxd7 {[%emt 0:08:49]} Qxd7 {[%emt 0:00:07]} 33. Bc5 {[%emt 0:00:53]} Re4 {[%emt 0:01:15]} 34. Rd1 {[%emt 0:06:43]} Rc4 {[%emt 0:00:43]} 35. Qe2 {[%emt 0:01:25]} Qe6 {[%emt 0:01:08]} 36. Qf3 {[%emt 0:01:46]} Ra2 {[%emt 0:00:58]} 37. Ra1 {[%emt 0:02:05]} Rcc2 {[%emt 0:00:57]} 38. Qf4 {[%emt 0:02:40]} Qe5 {[%emt 0:01:44]} 39. Rxa2 {[%emt 0:02:35]} Rxa2 {[%emt 0:02:40]} 40. Qg4 {[%emt 0:00:00]} Qf5 {[%emt 0:00:00]} 41. Qxf5 {[%emt 0:05:53]} gxf5 {[%emt 0:00:25]} 42. Kg1 {[%emt 0:02:49]} Kf7 {[%emt 0:00:40]} 43. g3 {[%emt 0:01:08]} Ke6 {[%emt 0:00:44]} 44. Kg2 {[%emt 0:00:20]} Rc2 {[%emt 0:02:39]} 45. Kf3 {[%emt 0:03:34]} h5 {[%emt 0:01:07]} 46. Rg1 {[%emt 0:01:19]} Rd2 {[%emt 0:06:12]} 47. Rc1 {[%emt 0:02:14]} Kd7 {[%emt 0:00:30]} 48. Re1 {[%emt 0:02:07]} Ke6 {[%emt 0:02:49]} 49. Rc1 {[%emt 0:00:21]} Kd7 {[%emt 0:00:20]} 50. Re1 {[%emt 0:00:23]} Ke6 {[%emt 0:00:17]} 51. Rc1 {[%emt 0:00:06]} Ke5 1/2-1/2

[Event "4th Memorial Warakomska-B 2020"]
[Site "Suwalki"]
[Date "2020.08.09"]
[Round "5.12"]
[White "Kopaczewski, Zbigniew"]
[Black "Bancarewicz, Aleks"]
[Result "0-1"]
[ECO "A00"]
[WhiteElo "1488"]
[BlackElo "1781"]
[Annotator "NA"]
[PlyCount "78"]
[EventDate "2020.08.06"]
[EventType "swiss"]
[EventCountry "POL"]
[SourceTitle "playchess.com"]
[Source "ChessBase"]
[SourceQuality "1"]
[TimeControl "40/5400+30:1800+30"]

1. e3 {[%emt 0:04:47]} e5 {[%emt 0:00:00]} 2. a3 {[%emt 0:01:12]} d5 {[%emt 0:01:06]} 3. d4 {[%emt 0:03:11]} exd4 {[%emt 0:06:52]} 4. Qxd4 {[%emt 0:04:05]} Nf6 {[%emt 0:05:01]} 5. Nf3 {[%emt 0:06:48]} Bd6 {[%emt 0:04:22]} 6. Qa4+ {[%emt 0:11:20]} c6 {[%emt 0:04:47]} 7. Nbd2 {[%emt 0:03:16]} O-O {[%emt 0:03:02]} 8. b4 {[%emt 0:08:13]} Bf5 {[%emt 0:11:09]} 9. Bb2 {[%emt 0:08:53]} Nbd7 {[%emt 0:02:29]} 10. Qb3 {[%emt 0:13:16]} a5 {[%emt 0:05:56]} 11. c4 {[%emt 0:06:46]} axb4 {[%emt 0:02:11]} 12. axb4 {[%emt 0:00:08]} Rxa1+ {[%emt 0:00:12]} 13. Bxa1 {[%emt 0:00:11]} dxc4 {[%emt 0:06:05]} 14. Bxc4 {[%emt 0:03:41]} Nb6 {[%emt 0:03:15]} 15. Be2 {[%emt 0:03:06]} Be6 16. Qb2 {[%emt 0:02:35]} h6 {[%emt 0:30:39]} 17. O-O {[%emt 0:01:51]} Qe7 {[%emt 0:00:10]} 18. Ne4 {[%emt 0:01:24]} Ne8 {[%emt 0:04:04]} 19. Nxd6 {[%emt 0:01:15]} Qxd6 {[%emt 0:00:06]} 20. Rd1 {[%emt 0:01:21]} Qe7 {[%emt 0:01:43]} 21. Qd4 {[%emt 0:00:50]} Nd5 {[%emt 0:01:23]} 22. Rb1 {[%emt 0:02:40]} Bf5 {[%emt 0:00:54]} 23. Rb2 {[%emt 0:00:42]} Qe4 {[%emt 0:00:39]} 24. Qc5 {[%emt 0:01:44]} Nef6 {[%emt 0:02:15]} 25. Nd4 {[%emt 0:01:03]} Ra8 {[%emt 0:01:03]} 26. Qc1 {[%emt 0:01:22]} Bg6 {[%emt 0:00:45]} 27. b5 {[%emt 0:01:35]} c5 {[%emt 0:01:01]} 28. Nb3 {[%emt 0:00:41]} b6 {[%emt 0:00:31]} 29. Bf3 {[%emt 0:01:02]} Qa4 {[%emt 0:00:53]} 30. Be2 {[%emt 0:01:51]} Nb4 {[%emt 0:01:08]} 31. f3 {[%emt 0:02:11]} Bd3 {[%emt 0:00:35]} 32. Qc3 {[%emt 0:01:07]} c4 {[%emt 0:01:06]} 33. Bxd3 {[%emt 0:00:46]} Nxd3 {[%emt 0:00:23]} 34. Rb1 {[%emt 0:00:16]} Qa2 {[%emt 0:00:30]} 35. Nd2 {[%emt 0:00:16]} Ra3 {[%emt 0:00:25]} 36. Qxc4 {[%emt 0:00:50]} Qxd2 {[%emt 0:00:41]} 37. Qc8+ {[%emt 0:00:11]} Kh7 {[%emt 0:00:14]} 38. Qf5+ {[%emt 0:00:37]} Kh8 {[%emt 0:00:41]} 39. Bxf6 {[%emt 0:00:43]} Qxe3+ 0-1